Cogmind - Beta 12 @@@ ROGUE MODE // 2023.08.07 @ 10:14:17 Player: ktur Result: Destroyed by Y-54 Guardian with Flak Gun Performance ------------- Evolutions (3) 1500 Regions Visited (12) 2400 Robots Destroyed (142) 710 Value Destroyed (5093) 5093 Prototype IDs (43) 860 Alien Tech Used (0) 0 Bonus (3313) 3313 TOTAL SCORE: 13876 Bonus ------- High Alert Combat Kills 628 Follower Combat Kills 285 Entered Garrisons 600 Used RIF Installer 1500 Aligned with FarCom 300 Cogmind --------- Core Integrity 0/700 Matter 267/300 Energy 251/300 System Corruption 16% Temperature Cool (6) Movement Walking (90) Location -7/Garrison Parts ------- > --- POWER (1) -------- (None) > --- PROPULSION (3) --- Potential Leg Potential Leg > --- UTILITY (7) ------ High-capacity Storage Unit Compact Battery Improved Signal Interpreter Core Analyzer Microactuators Hacking Suite System Shield > --- WEAPON (2) ------- Spear > --- INVENTORY (20) --- Experimental Sensor Array Improved Salvage Targeting Computer Advanced Melee Analysis Suite Advanced Melee Analysis Suite Core Analyzer ECM Suite Hacking Suite Authchip [Device] Authchip [Device] Authchip [Armor] Relay Coupler [Duelist] (35) Relay Coupler [Hunter] (22) Improved EM Pulse Cannon Latent Energy Streamer Firepult Mini Grenade Launcher Improved Remote Datajack Spear Peak State ------------ > --- POWER ------------ Micro Nuclear Core > --- PROPULSION ------- Light Treads Armored Huge Wheel > --- UTILITY ---------- Coolant Injector Huge Storage Unit Improved Signal Interpreter Core Analyzer Improved Medium Armor Plating Hacking Suite System Shield > --- WEAPON ----------- Firepult > --- INVENTORY -------- Potential Leg Potential Leg High-capacity Storage Unit Compact Battery Experimental Sensor Array Improved Salvage Targeting Computer Advanced Melee Analysis Suite Advanced Melee Analysis Suite Core Analyzer Microactuators Microactuators ECM Suite Improved Medium Armor Plating Shield Generator Authchip [Device] Authchip [Armor] Relay Coupler [Duelist] Relay Coupler [Sentry] Relay Coupler [Hunter] Improved EM Pulse Cannon Latent Energy Streamer Mini Grenade Launcher Improved Remote Datajack Spear Spear [Rating: 66] Favorites ----------- Power Ion Engine Engine Ion Engine Power Core Micro Nuclear Core Propulsion Light Treads Treads Light Treads Leg Potential Leg Wheel Armored Wheel Utility Huge Storage Unit Device Heat Sink Storage Huge Storage Unit Processor Advanced Targeting Computer Hackware System Shield Protection Hardened Light Armor Plating Weapon Improved EM Shotgun Energy Gun Improved EM Shotgun Energy Cannon Particle Cannon Ballistic Gun Heavy Assault Rifle Launcher Rocket Launcher Special Weapon Improved Remote Datajack Slashing Weapon Scythe Piercing Weapon Spear Special Melee Weapon Datajack Build | -11 -10 -10 -9 -9 -9 -8 -8 -8 -8 -8 -7 -7 ------- Run | Jun Mat Min Mat Min Exi Min Mat Gar Mat Gar Fac Gar Slots Evolved 6 | . . . 2 . . . 2 . . . 2 . Power . | . . . . . . . . . . . . . Propulsion 1 | . . . 1 . . . . . . . . . Utility 5 | . . . 1 . . . 2 . . . 2 . Weapon . | . . . . . . . . . . . . . Parts Attached 195 | 6 13 8 32 2 5 . 13 24 4 21 46 21 Power 10 | 1 1 1 1 . . . 1 1 . 1 2 1 Engine 5 | 1 1 1 1 . . . 1 . . . . . Core 5 | . . . . . . . . 1 . 1 2 1 Reactor . | . . . . . . . . . . . . . Propulsion 32 | 2 2 . 6 1 . . 1 6 1 6 4 3 Treads 26 | 2 2 . 6 1 . . 1 6 1 4 2 1 Leg 2 | . . . . . . . . . . . . 2 Wheel 4 | . . . . . . . . . . 2 2 . Hover . | . . . . . . . . . . . . . Flight . | . . . . . . . . . . . . . Utility 63 | 1 4 2 5 . 3 . 4 6 1 3 24 10 Device 25 | . 2 1 . . 1 . 1 1 . . 14 5 Storage 7 | 1 1 . . . . . . . . . 1 4 Processor 4 | . . . 1 . . . 1 1 . . 1 . Hackware 6 | . . . . . . . . 2 . 1 3 . Protection 21 | . 1 1 4 . 2 . 2 2 1 2 5 1 Artifact . | . . . . . . . . . . . . . Weapon 90 | 2 6 5 20 1 2 . 7 11 2 11 16 7 Energy Gun 16 | . . . 8 1 1 . 4 2 . . . . Energy Cannon 14 | . 5 3 . . . . . . . 1 3 2 Ballistic Gun 25 | 2 . 2 12 . . . . 5 1 3 . . Ballistic Cannon . | . . . . . . . . . . . . . Launcher 13 | . 1 . . . . . . 2 . 3 4 3 Special Weapon 3 | . . . . . . . . . . 2 1 . Impact Weapon . | . . . . . . . . . . . . . Slashing Weapon 8 | . . . . . . . 3 2 1 2 . . Piercing Weapon 10 | . . . . . . . . . . . 8 2 Special Melee Weapon 1 | . . . . . 1 . . . . . . . Unidentified Prototypes 3 | . . . 1 . 1 . . . . . 1 . Parts Lost 22 | . . . . 1 . . . 2 . 7 4 8 Power 3 | . . . . . . . . . . 1 . 2 Propulsion 7 | . . . . 1 . . . . . 3 1 2 Utility 10 | . . . . . . . . 1 . 2 3 4 Weapon 2 | . . . . . . . . 1 . 1 . . Highest Loss Streak 2 | . . . . 1 . . . 2 . 2 2 2 To Critical Strikes . | . . . . . . . . . . . . . Average Slot Usage (%) 97 | . 99 100 99 99 100 100 98 99 98 98 91 83 Engine 7 | . 13 14 11 11 11 11 9 5 . . . . Core 2 | . . . . . . . . 3 9 8 7 5 Treads 24 | . 27 28 32 32 33 33 27 27 26 19 5 4 Wheel 2 | . . . . . . . . . . 7 9 4 Device 5 | . 13 13 . . . . 4 3 . . 6 5 Storage 10 | . 14 14 11 11 11 11 9 9 9 9 7 8 Processor 8 | . . . 11 11 11 11 12 9 9 9 14 15 Hackware 6 | . . . . . . . . 11 18 15 18 15 Protection 6 | . . . 10 11 11 11 17 12 8 10 3 1 Energy Gun 5 | . . . 9 22 14 22 16 4 . . . . Energy Cannon 7 | . 26 27 . . . . . . . . . . Ballistic Gun 3 | . 1 . 12 . . . . 8 9 7 . . Special Weapon 1 | . . . . . . . . . . 4 6 1 Slashing Weapon 1 | . . . . . . . 1 4 8 4 . . Piercing Weapon 1 | . . . . . . . . . . . 6 11 Naked Turns . | . . . . . . . . . . . . . Heaviest Build 117 | 14 93 96 96 94 96 96 108 111 107 113 117 100 Greatest Support 60 | 40 40 40 60 60 60 60 60 60 60 60 28 60 Greatest Overweight (x) 8 | . 2 2 4 1 1 1 1 1 1 8 4 4 Average Overweight (x) 1 | . 1 2 1 1 1 1 1 1 1 2 3 2 Largest Inventory Capacity 25 | 8 25 25 25 25 25 25 25 25 25 25 25 25 Average Capacity 24 | 6 23 25 25 25 25 25 25 25 25 25 25 24 Most Carried 25 | 6 25 25 25 25 25 25 25 25 25 25 25 25 Average Carried 24 | 3 20 24 24 24 24 25 24 24 24 24 24 22 Final Capacity 25 | 8 25 25 25 25 25 25 25 25 25 25 25 20 Final Carried 25 | 6 25 25 25 25 25 25 25 25 25 25 25 19 Class Distribution -------------------- 39% | Mutant 30% | Scavenger-Mutant 16% | Bothacker-Mutant 14% | Hacker-Mutant Dominant Class ---------------- Mutant | -10/Materials Mutant | -10/Mines Scavenger-Mutant | -9/Materials Scavenger-Mutant | -9/Mines Scavenger-Mutant | -9/Exiles Mutant | -8/Mines Mutant | -8/Materials Scavenger-Mutant | -8/Garrison Bothacker-Mutant | -8/Materials Bothacker-Mutant | -8/Garrison Hacker-Mutant | -7/Factory Hacker-Mutant | -7/Garrison Resources | -11 -10 -10 -9 -9 -9 -8 -8 -8 -8 -8 -7 -7 ----------- Run | Jun Mat Min Mat Min Exi Min Mat Gar Mat Gar Fac Gar Matter Collected 3162 | 256 219 155 507 12 10 . 135 485 . 541 505 337 Remotely . | . . . . . . . . . . . . . Salvage Created 5125 | . 469 281 747 221 . . 328 644 . 935 803 697 Parts 278 | . 37 15 56 9 . . 11 41 . 34 43 32 Haulers Intercepted 5 | . 2 . 1 . . . . . . . 2 . Recyclers Shooed 3 | . 1 . 2 . . . . . . . . . Parts Field Recycled . | . . . . . . . . . . . . . Retrieved Matter . | . . . . . . . . . . . . . Parts Self-Destructed . | . . . . . . . . . . . . . Prevented . | . . . . . . . . . . . . . Kills | -11 -10 -10 -9 -9 -9 -8 -8 -8 -8 -8 -7 -7 ------- Run | Jun Mat Min Mat Min Exi Min Mat Gar Mat Gar Fac Gar Combat Hostiles Destroyed 122 | . 12 6 15 4 . . 4 19 . 22 18 22 Melee 13 | . . . . . . . . . . 1 9 3 Guns 42 | . 3 2 15 2 . . 1 11 . 8 . . Cannons 16 | . 9 4 . . . . . . . . 1 2 AOE 48 | . . . . 2 . . 3 8 . 13 7 15 Classes Destroyed 16 | . 7 2 . 2 . . 1 . . 2 2 . Worker 2 | . 1 . . . . . . . . . 1 . Builder 2 | . . 1 1 . . . . . . . . . Hauler 5 | . 2 . 1 . . . . . . . 2 . Recycler 4 | . 1 . . 1 . . 1 . . . 1 . Operator 4 | . 1 . 3 . . . . . . . . . Watcher 4 | . 1 . 2 . . . 1 . . . . . Swarmer 44 | . 9 . 4 . . . . 8 . 4 7 12 Cutter 1 | . . . . . . . . . . 1 . . Grunt 48 | . 3 4 9 2 . . 3 5 . 11 6 5 Brawler 3 | . . . . . . . . . . 1 . 2 Duelist 3 | . . . . 1 . . . . . . 1 1 Sentry 15 | . . 2 2 . . . . 5 . 4 . 2 Demolisher 2 | . . . . 1 . . . . . . 1 . Hunter 3 | . . . . . . . 1 1 . 1 . . Programmer 2 | . . . . . . . . . . . 2 . Assembled 1 | . . . . . . . . . . . 1 . Best Kill Streak 10 | . 4 2 5 3 . . 3 4 . 10 5 8 Combat Bots Only 10 | . 4 2 5 3 . . 3 4 . 10 4 8 Max Kills in Single Turn 5 | . 1 1 2 2 . . 2 3 . 5 4 2 Gunslinging 1 | . . . 1 . . . . . . . . . Exploded 5 | . . . . 2 . . 2 3 . 5 3 2 Melee 1 | . . . . . . . . . . 1 1 1 Uniques/NPCs Destroyed . | . . . . . . . . . . . . . Combat | -11 -10 -10 -9 -9 -9 -8 -8 -8 -8 -8 -7 -7 -------- Run | Jun Mat Min Mat Min Exi Min Mat Gar Mat Gar Fac Gar Damage Taken 7541 | . 595 188 457 160 . . 121 1151 . 1417 1812 1640 Core 1126 | . 96 25 31 27 . . 13 79 . 154 317 384 Absorbed by Shields 373 | . . . . . . . 20 191 . 60 20 82 Redirected to Shielding 13 | . 7 6 . . . . . . . . . . Regen/Repaired (Parts) 738 | . 298 . . . . . . . 210 . 230 . Core Remaining (%) 72 | 100 . 51 . . . 85 . . . 55 . . Volleys Fired 246 | . 46 10 47 8 . . 6 48 . 40 16 25 Largest 2 | . 2 2 2 2 . . 2 2 . 2 1 1 Hottest 250 | . 128 136 90 90 . . 90 90 . 56 250 69 Shots Fired 416 | . 90 20 94 16 . . 12 92 . 51 16 25 Gun 258 | . 12 6 94 16 . . 12 87 . 31 . . Cannon 116 | . 76 14 . . . . . . . . 9 17 Launcher 31 | . 2 . . . . . . 5 . 12 4 8 Special 11 | . . . . . . . . . . 8 3 . Kinetic 168 | . 12 6 64 . . . . 55 . 31 . . Thermal 95 | . 76 14 . . . . . . . . 5 . Explosive 31 | . 2 . . . . . . 5 . 12 4 8 Electromagnetic 111 | . . . 30 16 . . 12 32 . . 4 17 Robot Hit Streak 21 | . 6 12 21 11 . . 11 21 . 10 3 13 Robot Miss Streak 5 | . 5 1 3 2 . . 2 3 . 2 4 1 Penetration Max 1 | . . . . . . . . 1 . . . . Secondary Targets 3 | . . . 1 . . . . 2 . . . . Max Gunslinging Chain 1 | . . . 1 . . . . 1 . . . . Shots Hit Robots 355 | . 37 13 74 13 4 . 10 80 . 45 46 33 Core Hits 235 | . 19 9 34 10 . . 11 36 . 41 38 37 Critical Kills 1 | . . . . . . . . 1 . . . . Critical Parts Destroyed 1 | . . . . . . . . 1 . . . . Critical Strikes 5 | . . . . . . . . 3 . . . 2 Destroy 3 | . . . . . . . . 3 . . . . Impale 2 | . . . . . . . . . . . . 2 Melee Attacks 174 | . . . . . 4 . 6 8 11 14 94 37 Impact . | . . . . . . . . . . . . . Slashing 40 | . . . . . . . 6 8 11 14 1 . Piercing 130 | . . . . . . . . . . . 93 37 Sneak Attacks 13 | . . . . . 4 . . . . . 9 . Combat Hostiles 2 | . . . . . . . . . . . 2 . Follow-up Attacks 8 | . . . . . . . . . . . 4 4 Damage Inflicted 11049 | . 790 275 1281 428 . 15 457 1863 . 1943 2018 1979 Guns 3476 | . 49 62 1240 204 . . 206 1325 . 390 . . Cannons 1299 | . 658 165 . . . . . . . . 118 358 Explosions 3839 | . . . . 102 . . 251 533 . 1104 623 1226 Melee 2104 | . . . . . . . . . . 449 1277 378 Ramming 331 | . 83 48 41 122 . 15 . 5 . . . 17 Kinetic 2134 | . 49 62 801 . . . . 832 . 390 . . Thermal 1482 | . 658 165 . 102 . . 251 76 . . 230 . Explosive 2801 | . . . . . . . . 457 . 1104 325 915 Electromagnetic 2197 | . . . 439 204 . . 206 493 . . 186 669 Impact . | . . . . . . . . . . . . . Slashing 449 | . . . . . . . . . . 449 . . Piercing 1655 | . . . . . . . . . . . 1277 378 Highest Corruption 16 | . . . . . . . . . . . 10 16 Average Corruption 9 | . . . . . . . . . . . 7 13 Corruption Purged . | . . . . . . . . . . . . . Corruption Blocked . | . . . . . . . . . . . . . Effects 56 | . . . . . . . . . . . 26 30 Message Errors 10 | . . . . . . . . . . . 6 4 Matter Fused 18 | . . . . . . . . . . . 8 10 Heat Flow Errors 8 | . . . . . . . . . . . 4 4 Energy Discharges 7 | . . . . . . . . . . . 1 6 Data Loss (minor) 8 | . . . . . . . . . . . 5 3 Data Loss (major) 3 | . . . . . . . . . . . . 3 Alerts 2 | . . . . . . . . . . . 2 . Overload Shots . | . . . . . . . . . . . . . Overflow Damage 220 | . . . . 4 . . 16 11 . 30 130 29 Projectiles 13 | . . . . . . . . . . . . 13 Explosions 59 | . . . . . . . 16 11 . 21 . 11 Melee 148 | . . . . 4 . . . . . 9 130 5 Knockbacks 2 | . . . . 2 . . . . . . . . Impact 2 | . . . . 2 . . . . . . . . Kinetic . | . . . . . . . . . . . . . Secondary . | . . . . . . . . . . . . . Self-Inflicted Damage 457 | . . . . 48 . . 56 53 . 150 25 125 Shots 12 | . . . . 1 . . 1 2 . 4 1 3 Rammed 34 | . 10 4 6 12 . 1 . 1 . . . . Targets Rammed 39 | . 10 5 6 13 . 1 . 1 . . . 3 Kicked 3 | . . . . . . . . . . . . 3 Crushed 2 | . . 1 . 1 . . . . . . . . Highest Temperature 337 | . 270 237 156 198 . . 168 337 . 185 290 231 Average Temperature 83 | . 74 83 43 83 . . 66 122 . 58 102 64 Received Heat Transfer 1608 | . 36 117 183 6 . . 24 382 . 326 261 273 Effects 2 | . 1 . . . . . . 1 . . . . Shutdowns 1 | . . . . . . . . 1 . . . . Energy Bleed 1 | . 1 . . . . . . . . . . . Siege Activations . | . . . . . . . . . . . . . Robots Corrupted 3 | . . . . . . . . . . . 1 2 Combat Hostiles 3 | . . . . . . . . . . . 1 2 Parts Fried 9 | . . . 5 . . . 1 1 . . 1 1 Impact Corruptions 1 | . . . . 1 . . . . . . . . Robots Melted . | . . . . . . . . . . . . . Combat Hostiles . | . . . . . . . . . . . . . Parts Melted 7 | . 3 2 . . . . . . . 1 1 . Heat Transferred 2988 | . 1332 296 . . . . 200 150 . . 1010 . Parts Sabotaged . | . . . . . . . . . . . . . Parts Stolen . | . . . . . . . . . . . . . Parts Stripped . | . . . . . . . . . . . . . Power Chain Reactions 8 | . . . . 1 . . 4 2 . . 1 . Missiles Intercepted . | . . . . . . . . . . . . . Latent Energy Used 311 | . . . . . . . . . . . 201 110 LE Corruption 7 | . . . . . . . . . . . 4 3 Alert | -11 -10 -10 -9 -9 -9 -8 -8 -8 -8 -8 -7 -7 ------- Run | Jun Mat Min Mat Min Exi Min Mat Gar Mat Gar Fac Gar Peak Influence 1006 | . 220 106 163 95 . . 107 850 425 1006 606 1005 Initial 527 | . . . . 54 . . . 50 414 276 527 401 Average 240 | . 66 14 48 19 . . 51 543 419 711 397 677 Maximum Alert Level 3 | . 1 . . . . . . 3 2 3 2 3 Low Security (%) 64 | 100 96 100 100 100 . 100 100 24 . . 24 . Level 1 3 | . 3 . . . . . . 10 . 7 9 . Level 2 18 | . . . . . . . . 20 100 16 65 56 Level 3 12 | . . . . . . . . 44 . 75 . 43 Level 4 . | . . . . . . . . . . . . . Level 5 . | . . . . . . . . . . . . . High Security . | . . . . . . . . . . . . . Max Security . | . . . . . . . . . . . . . Squads Dispatched 21 | . 3 1 5 1 . . . . . . 11 . Investigation 9 | . 2 1 2 . . . . . . . 4 . Extermination 3 | . . . . . . . . . . . 3 . Reinforcement 7 | . 1 . 3 1 . . . . . . 2 . Assault 2 | . . . . . . . . . . . 2 . Garrison . | . . . . . . . . . . . . . Intercept . | . . . . . . . . . . . . . Searches Triggered . | . . . . . . . . . . . . . Construction Impeded 1 | . . . . 1 . . . . . . . . Haulers Reinforced . | . . . . . . . . . . . . . Active Scanning Responses . | . . . . . . . . . . . . . Cargo Convoy Interrupts . | . . . . . . . . . . . . . Stealth | -11 -10 -10 -9 -9 -9 -8 -8 -8 -8 -8 -7 -7 --------- Run | Jun Mat Min Mat Min Exi Min Mat Gar Mat Gar Fac Gar Distress Signals 8 | . . . 6 . . . 2 . . . . . Communications Jammed . | . . . . . . . . . . . . . Distress Signals . | . . . . . . . . . . . . . Times Spotted 195 | . 30 6 28 4 . . 8 18 . 29 49 23 Peak Tracking Total 11 | . 5 2 5 3 . . 4 4 . 10 8 11 Tactical Retreats 9 | . 2 . . . . . . . . 2 4 1 Traps | -11 -10 -10 -9 -9 -9 -8 -8 -8 -8 -8 -7 -7 ------- Run | Jun Mat Min Mat Min Exi Min Mat Gar Mat Gar Fac Gar Traps Triggered 28 | . 2 . 3 . . . . 6 . 11 3 3 Indirectly 2 | . . . . . . . . . . . . 2 Trap Hack Attempts . | . . . . . . . . . . . . . Triggered . | . . . . . . . . . . . . . Disarmed . | . . . . . . . . . . . . . Reprogrammed . | . . . . . . . . . . . . . Reused . | . . . . . . . . . . . . . Traps Extracted . | . . . . . . . . . . . . . Installed . | . . . . . . . . . . . . . Triggered . | . . . . . . . . . . . . . Machines | -11 -10 -10 -9 -9 -9 -8 -8 -8 -8 -8 -7 -7 ---------- Run | Jun Mat Min Mat Min Exi Min Mat Gar Mat Gar Fac Gar Machines Disabled 14 | . 1 . . 2 . . 2 2 . 1 5 1 Max in Single Turn 2 | . 1 . . 2 . . 1 1 . 1 1 1 Garrison Access 2 | . . . . . . . . . . . 2 . Garrison Relay 4 | . . . . . . . . 2 . 1 . 1 Phase Generator 1 | . . . . . . . . . . 1 . . Machines Repaired . | . . . . . . . . . . . . . Machines Sabotaged . | . . . . . . . . . . . . . Overloaded Fab Kills . | . . . . . . . . . . . . . Hacking | -11 -10 -10 -9 -9 -9 -8 -8 -8 -8 -8 -7 -7 --------- Run | Jun Mat Min Mat Min Exi Min Mat Gar Mat Gar Fac Gar Machines Accessed 42 | . 9 1 5 . 2 . 3 3 2 2 11 4 Terminals 23 | . 7 . 2 . . . 2 3 . 2 3 4 Fabricators 4 | . . . . . . . . . . . 4 . Repair Stations 3 | . 1 . . . . . . . 1 . 1 . Recycling Units 3 | . 1 . 2 . . . . . . . . . Scanalyzers 1 | . . . 1 . . . . . . . . . Garrison Access 5 | . . . . . . . 1 . 1 . 3 . Total Hacks 114 | . 31 1 12 . 2 . 8 8 6 5 33 8 Successful 63 | . 15 1 7 . 2 . 3 2 6 1 23 3 Failed 51 | . 16 . 5 . . . 5 6 . 4 10 5 Catastrophic 7 | . 2 . . . . . . 2 . 1 1 1 Database Lockouts . | . . . . . . . . . . . . . Manual 38 | . 15 . 5 . 1 . 2 1 . . 14 . Terminals 72 | . 22 . 6 . . . 7 8 . 5 16 8 Fabricators 11 | . . . . . . . . . . . 11 . Repair Stations 15 | . 7 . . . . . . . 5 . 3 . Recycling Units 4 | . 2 . 2 . . . . . . . . . Scanalyzers 4 | . . . 4 . . . . . . . . . Garrison Access 5 | . . . . . . . 1 . 1 . 3 . Terminal Hacks 28 | . 8 1 2 . 2 . 2 2 . 1 7 3 Record 1 | . . . . . 1 . . . . . . . Part Schematic 3 | . . . . . . . . . . . 3 . Robot Analysis 3 | . 3 . . . . . . . . . . . Prototype ID Bank 2 | . . . 1 . . . 1 . . . . . Open Door 2 | . . 1 . . . . . . . 1 . . Emergency Access Points 2 | . . . . . . . . 1 . . . 1 Unreport Threat 2 | . . . 1 . . . . . . . 1 . Locate Traps 4 | . 2 . . . . . 1 . . . 1 . Transport Status 1 | . 1 . . . . . . . . . . . Hauler Manifests 3 | . 2 . . . . . . . . . 1 . Zone Layout 1 | . . . . . . . . . . . 1 . Garrison Registry 2 | . . . . . . . . 1 . . . 1 Patrol Navigation 1 | . . . . . . . . . . . . 1 EX-Prototype ID Bank 1 | . . . . . 1 . . . . . . . Fabricator Hacks 4 | . . . . . . . . . . . 4 . Network Status 1 | . . . . . . . . . . . 1 . Load Schematic 3 | . . . . . . . . . . . 3 . Repair Station Hacks 13 | . 6 . . . . . . . 5 . 2 . Scan Component 7 | . 3 . . . . . . . 3 . 1 . Repair 6 | . 3 . . . . . . . 2 . 1 . Recycling Unit Hacks . | . . . . . . . . . . . . . Scanalyzer 2 | . . . 2 . . . . . . . . . Insert Component 1 | . . . 1 . . . . . . . . . Analyze 1 | . . . 1 . . . . . . . . . Garrison Access Hacks 5 | . . . . . . . 1 . 1 . 3 . Unlock Access 3 | . . . . . . . 1 . 1 . 1 . Seal Access 2 | . . . . . . . . . . . 2 . Unauthorized Hacks 11 | . 1 . 3 . . . . . . . 7 . Terminals 4 | . . . 1 . . . . . . . 3 . Assimilate 1 | . . . . . . . . . . . 1 . Botnet 3 | . . . 1 . . . . . . . 2 . Fabricators 4 | . . . . . . . . . . . 4 . Haulers 1 | . . . . . . . . . . . 1 . Recompile 3 | . . . . . . . . . . . 3 . Repair Stations . | . . . . . . . . . . . . . Recycling Units 3 | . 1 . 2 . . . . . . . . . Tunnel 3 | . 1 . 2 . . . . . . . . . Scanalyzers . | . . . . . . . . . . . . . Garrison Access . | . . . . . . . . . . . . . Data Cores Recovered 2 | . . . 1 . . . . . . . 1 . Used . | . . . . . . . . . . . . . Hacking Detections 28 | . 8 . 2 . . . 2 3 1 2 7 3 Full Trace Events 3 | . 1 . . . . . . 2 . . . . Feedback Events . | . . . . . . . . . . . . . Feedback Blocked . | . . . . . . . . . . . . . Robot Schematics Acquired . | . . . . . . . . . . . . . Robots Built . | . . . . . . . . . . . . . Authchips . | . . . . . . . . . . . . . Time . | . . . . . . . . . . . . . Total Robot Build Rating . | . . . . . . . . . . . . . Part Schematics Acquired 4 | . . . 1 . . . . . . . 3 . Parts Built . | . . . . . . . . . . . . . Authchips . | . . . . . . . . . . . . . Time . | . . . . . . . . . . . . . Total Part Build Rating . | . . . . . . . . . . . . . Parts Repaired 6 | . 3 . . . . . . . 2 . 1 . Time 150 | . 78 . . . . . . . 58 . 14 . Parts Recycled . | . . . . . . . . . . . . . Recycled Matter . | . . . . . . . . . . . . . Retrieved Matter . | . . . . . . . . . . . . . Retrieved Components . | . . . . . . . . . . . . . Parts Scanalyzed 1 | . . . 1 . . . . . . . . . Part Schematics Acquired 1 | . . . 1 . . . . . . . . . Parts Damaged 1 | . . . 1 . . . . . . . . . Bothacking | -11 -10 -10 -9 -9 -9 -8 -8 -8 -8 -8 -7 -7 ------------ Run | Jun Mat Min Mat Min Exi Min Mat Gar Mat Gar Fac Gar Used RIF Installer 3 | . . . . . . . . 1 . 1 . 1 Coupler Efficiency 1 | . . . . . . . . . . . . 1 Program Shield 1 | . . . . . . . . . . 1 . . Robots Hacked 7 | . . . . . 4 . . . . 2 1 . Non-combat 3 | . . . . . 3 . . . . . . . Combat 4 | . . . . . 1 . . . . 2 1 . Robot Hacks Applied 8 | . . . . . 4 . . . . 2 2 . parse_system 4 | . . . . . 4 . . . . . . . find_garrison 1 | . . . . . . . . . . . 1 . amplify_resonance 1 | . . . . . . . . . . 1 . . overwrite_iff 1 | . . . . . . . . . . 1 . . formatsys_high 1 | . . . . . . . . . . . 1 . Relay Couplers Released 18 | . . . . . . . . 8 . 5 . 5 Machine Destruction 18 | . . . . . . . . 8 . 5 . 5 Attached 2 | . . . . . . . . . . 1 1 . Fabnet Peak Effective % . | . . . . . . . . . . . . . Robots Rewired 3 | . . . . . . . . . . 3 . . Allies Hacked . | . . . . . . . . . . . . . Hacks Repelled . | . . . . . . . . . . . . . Allies | -11 -10 -10 -9 -9 -9 -8 -8 -8 -8 -8 -7 -7 -------- Run | Jun Mat Min Mat Min Exi Min Mat Gar Mat Gar Fac Gar Total Allies 9 | . . . . 1 . . . . . 6 2 . Largest Group 5 | . . . . 1 . . . . . 5 5 . Highest-Rated Group 141 | . . . . 31 . . . . . 141 141 . Highest-Rated Ally 39 | . . . . 31 . . . . . 39 39 . Total Orders . | . . . . . . . . . . . . . Ally Attacks 74 | . . . . . . . . . . 18 56 . Total Damage 1110 | . . . . . . . . . . 339 771 . Kills 12 | . . . . . . . . . . 3 9 . Allies Corrupted 1 | . . . . . . . . . . . 1 . Allies Melted . | . . . . . . . . . . . . . Intel | -11 -10 -10 -9 -9 -9 -8 -8 -8 -8 -8 -7 -7 ------- Run | Jun Mat Min Mat Min Exi Min Mat Gar Mat Gar Fac Gar Robot Analysis Total 3 | . 3 . . . . . . . . . . . Derelict Logs Recovered 3 | . . 2 . 1 . . . . . . . . Drone Launches . | . . . . . . . . . . . . . Drone Recoveries . | . . . . . . . . . . . . . Exploration | -11 -10 -10 -9 -9 -9 -8 -8 -8 -8 -8 -7 -7 ------------- Run | Jun Mat Min Mat Min Exi Min Mat Gar Mat Gar Fac Gar Turns Passed 17693 | 85 2511 2188 2075 1820 970 416 661 1765 309 1341 2823 729 Spaces Moved 6997 | 47 738 657 746 667 396 173 226 631 89 621 1648 358 Core 5 | 5 . . . . . . . . . . . . Treads 4638 | 42 738 657 746 667 396 173 226 631 89 265 . 8 Legs 121 | . . . . . . . . . . . . 121 Wheels 2233 | . . . . . . . . . . 356 1648 229 Hover . | . . . . . . . . . . . . . Flight . | . . . . . . . . . . . . . Fastest Speed 50 | 50 160 320 240 240 240 240 240 240 240 135 135 90 Average Speed 220 | 148 299 320 240 240 240 240 240 240 240 180 143 151 Slowest Speed 480 | 160 320 320 480 240 240 240 240 240 240 320 160 480 Overloaded Moves . | . . . . . . . . . . . . . Propulsion Burnouts . | . . . . . . . . . . . . . Robots Hopped . | . . . . . . . . . . . . . Cave-ins Triggered 1 | . . . . . . . . . . . 1 . Exploration Rate (%) 55 | 4 99 99 47 99 71 43 22 63 12 80 34 54 Regions Visited 12 Branch Regions 4 Pre-discovered Areas 4 | . 1 . 2 . 1 . . . . . . . Known Exits Taken 3 | . . . . . . . 1 . 1 . 1 . Unknown Exits Taken 7 | 1 1 1 1 1 1 1 . . . . . . Scrap Searched 4 | . . 3 . 1 . . . . . . . . Spaces Dug 79 | . 13 . . . . . 4 . 11 13 31 7 Terrain Destroyed 247 | . 13 . . 5 . . 26 40 11 52 73 27 Melee 47 | . . . . . . . 4 . 11 . 31 1 Projectile 1 | . . . . . . . . . . 1 . . AOE 199 | . 13 . . 5 . . 22 40 . 51 42 26 Terrain Rammed . | . . . . . . . . . . . . . Walls Destroyed . | . . . . . . . . . . . . . Machines Disabled . | . . . . . . . . . . . . . Actions | -11 -10 -10 -9 -9 -9 -8 -8 -8 -8 -8 -7 -7 --------- Run | Jun Mat Min Mat Min Exi Min Mat Gar Mat Gar Fac Gar Total 8569 | 60 932 719 931 853 417 173 324 777 166 773 1972 472 Wait 641 | . 87 11 50 161 . . 54 35 61 38 116 28 Move 6986 | 46 737 656 745 666 395 172 226 629 89 619 1648 358 Hop . | . . . . . . . . . . . . . Pick Up 134 | 8 29 14 23 2 6 . 9 10 1 9 22 1 Fast Attach 37 | 4 2 . 11 . . . 2 3 1 3 8 3 Attach 51 | 2 3 1 7 2 2 . 4 5 1 7 10 7 Detach 5 | . . . . . . . . . . 2 2 1 Swap 107 | . 8 7 14 . 3 . 7 16 2 11 28 11 Drop 121 | . 10 15 28 1 7 . 10 14 . 6 27 3 Fire 246 | . 46 10 47 8 . . 6 48 . 40 16 25 Melee 162 | . . . . . 4 . 6 8 11 14 87 32 Ram . | . . . . . . . . . . . . . Kick 3 | . . . . . . . . . . . . 3 Crush 36 | . 10 5 6 13 . 1 . 1 . . . . Escape Stasis 40 | . . . . . . . . 8 . 24 8 . Rewire . | . . . . . . . . . . . . . Trap . | . . . . . . . . . . . . . Miscellaneous . | . . . . . . . . . . . . . Route ------- -11/Junkyard -10/Materials (discovered 4 exits: *Mat x3 / *Min) -10/Mines (discovered 2 exits: *Mat x2) -9/Materials (discovered 2 exits: [*Min] / [*Sto]) -9/Mines (discovered 3 exits: *Mat x2 / *Exi) -9/Exiles -8/Mines (discovered 2 exits: *Mat x2) -8/Materials -8/Garrison (discovered 3 exits: *Mat x3) -8/Materials -8/Garrison (discovered 3 exits: *Fac x3) -7/Factory (discovered 2 exits: *Low / Gar) -7/Garrison (discovered 3 exits: *Fac x3) History --------- Turn | Location | Event 35 | -11/Junkyard | Discovered new exit (range 15) 86 | -11/Junkyard | Entered Materials 302 | -10/Materials | Build established: Mutant 537 | -10/Materials | Discovered new exit (range 3) 1257 | -10/Materials | Discovered new exit (range 16) 1394 | -10/Materials | Repaired Lgt. Treads 1421 | -10/Materials | Repaired Lgt. Treads 1449 | -10/Materials | Repaired Ion Engine 1696 | -10/Materials | Discovered new exit (range 15) 2006 | -10/Materials | Discovered new exit (range 15) 2597 | -10/Materials | Entered Mines 2637 | -10/Mines | Met a Derelict shopkeep closing up shop 3129 | -10/Mines | Discovered new exit (range 7) 3568 | -10/Mines | Learned Materials terminal intel 3849 | -10/Mines | Learned Materials non-interactive machine intel 4001 | -10/Mines | Discovered new exit (range 12) 4339 | -10/Mines | Received a Rocket Launcher from a helpful Derelict 4785 | -10/Mines | Entered Materials 4785 | -9/Materials | Evolved 2 slots: Propulsion x1, Utility x1 4786 | -9/Materials | Loaded intel: 40 non-interactive machine locations 4787 | -9/Materials | Loaded intel: 12 terminal locations 4852 | -9/Materials | Discovered new exit (range 12) 5536 | -9/Materials | Build established: Scavenger-Mutant 6824 | -9/Materials | Discovered new exit (range 8) 6860 | -9/Materials | Entered Mines 6914 | -9/Mines | Assembled infested the area 6919 | -9/Mines | Assisted by a Guerilla fighting off Assembled 7257 | -9/Mines | Found a damaged Exp. Sensor Array with a note attached 7268 | -9/Mines | Found Prototype Device 7454 | -9/Mines | Deemed a non-threat by the Exiles lab entrance 7456 | -9/Mines | Discovered new exit (range 5) 7593 | -9/Mines | Received a Mining Laser from a helpful Derelict 7944 | -9/Mines | Discovered new exit (range 14) 8247 | -9/Mines | Discovered new exit (range 3) 8276 | -9/Mines | Learned Materials garrison access intel 8680 | -9/Mines | Entered Exiles 8740 | -9/Exiles | Met 8R-AWN 8784 | -9/Exiles | Met EX-HEX 8894 | -9/Exiles | Met EX-DEC 8962 | -9/Exiles | Learned location of Zion (-6) 9200 | -9/Exiles | Met EX-BIN 9288 | -9/Exiles | Aligned with FarCom system 9290 | -9/Exiles | Given EX-Vault access code 9348 | -9/Exiles | Opened EX-Vault 9367 | -9/Exiles | Identified Exp. Sensor Array 9376 | -9/Exiles | Found Latent Energy Streamer 9403 | -9/Exiles | Found Firepult 9409 | -9/Exiles | Found Potential Leg 9413 | -9/Exiles | Found Potential Leg 9473 | -9/Exiles | Warned to stay clear of 0b10 Research branches 9631 | -9/Exiles | Discovered new exit (range 10) 9650 | -9/Exiles | Stole three prototypes: Potential Leg, Latent Energy Streamer, Firepult 9650 | -9/Exiles | Entered Mines 9670 | -8/Mines | Build established: Mutant 9722 | -8/Mines | Discovered new exit (range 9) 9946 | -8/Mines | Discovered new exit (range 11) 10066 | -8/Mines | Entered Materials 10066 | -8/Materials | Evolved 2 slots: Utility x2 10067 | -8/Materials | Loaded intel: 1 garrison access location 10727 | -8/Materials | Identified exit to Garrison 10727 | -8/Materials | Entered Garrison 10826 | -8/Garrison | Triggered checkpoint 10971 | -8/Garrison | Garrison Relay disabled 11156 | -8/Garrison | Triggered checkpoint 11210 | -8/Garrison | Triggered checkpoint 11499 | -8/Garrison | Garrison Relay disabled 11528 | -8/Garrison | Build established: Scavenger-Mutant 11547 | -8/Garrison | Discovered new exit (range 14) 11645 | -8/Garrison | Discovered new exit (range 72) 11645 | -8/Garrison | Discovered new exit (range 15) 11645 | -8/Garrison | Discovered new exit (range 56) 12004 | -8/Garrison | Installed Relay Interface Framework 12254 | -8/Garrison | Triggered checkpoint 12492 | -8/Garrison | Entered Materials 12601 | -8/Materials | Build established: Bothacker-Mutant 12624 | -8/Materials | Repaired Hrd. Light Armor Plating 12651 | -8/Materials | Repaired Lgt. Treads 12801 | -8/Materials | Identified exit to Garrison 12801 | -8/Materials | Entered Garrison 12885 | -8/Garrison | Triggered checkpoint 12906 | -8/Garrison | Triggered checkpoint 12926 | -8/Garrison | Triggered checkpoint 13098 | -8/Garrison | Discovered new exit (range 3) 13131 | -8/Garrison | Phase Generator disabled 13159 | -8/Garrison | Destroyed 10 combat bots 13472 | -8/Garrison | Garrison Relay disabled 13542 | -8/Garrison | Triggered checkpoint 13560 | -8/Garrison | Triggered checkpoint 13704 | -8/Garrison | Triggered checkpoint 13839 | -8/Garrison | Discovered new exit (range 10) 13994 | -8/Garrison | Triggered checkpoint 14034 | -8/Garrison | Discovered new exit (range 3) 14050 | -8/Garrison | Rescued a captive Derelict 14054 | -8/Garrison | Rescued a captive Derelict 14099 | -8/Garrison | Expanded RIF knowledge: Program Shield 14142 | -8/Garrison | Entered Factory 14142 | -7/Factory | Accompanied by 5 allies 14142 | -7/Factory | Evolved 2 slots: Utility x2 14144 | -7/Factory | FarCom data flow suspended 15510 | -7/Factory | Build established: Hacker-Mutant 16222 | -7/Factory | Crushed by falling debris 16542 | -7/Factory | First assault squad dispatched 16685 | -7/Factory | System corruption reached 10% 16822 | -7/Factory | Repaired Imp. Medium Armor Plating 16856 | -7/Factory | Discovered new exit (range 7) 16866 | -7/Factory | Identified exit to Lower Caves 16965 | -7/Factory | Identified exit to Garrison 16965 | -7/Factory | Entered Garrison 17008 | -7/Garrison | Expanded RIF knowledge: Coupler Efficiency 17094 | -7/Garrison | Triggered checkpoint 17109 | -7/Garrison | Core integrity fell below 50% 17130 | -7/Garrison | Destroyed 8 combat bots 17254 | -7/Garrison | Discovered new exit (range 10) 17266 | -7/Garrison | Identified exit to Factory 17286 | -7/Garrison | Discovered exit to Factory (range 11) 17286 | -7/Garrison | Discovered exit to Factory (range 61) 17286 | -7/Garrison | Discovered exit to Factory (range 90) 17386 | -7/Garrison | Core integrity fell below 20% 17606 | -7/Garrison | Triggered checkpoint 17686 | -7/Garrison | Garrison Relay disabled 17694 | -7/Garrison | Destroyed by Y-54 Guardian with Flak Gun Last Messages --------------- 17631_ S-27 Virus destroyed. 17632_ System corrupted: Heat flow error (+204). 17633_ Acquired 20 matter. 17636_ S-27 Virus destroyed. 17640_ Dropped Com. Battery. 17640_ Dropped Huge Storage Unit. 17641_ Extracted 5 energy. 17641_ Acquired Com. Battery. 17642_ Acquired 21 matter. 17643_ Acquired 6 matter. 17644_ Acquired 3 matter. 17647_ System corrupted: Component data lost. 17664_ System corrupted: Energy discharge (-111). 17685_ Detecting nearby RIF Installer. 17686_ Garrison Relay disabled. 17686_ Relay Coupler [NC] tumbles out of relay unit. 17686_ Relay Coupler [Cutter] tumbles out of relay unit. 17686_ Relay Coupler [Sentry] tumbles out of relay unit. 17686_ Relay Coupler [NC] tumbles out of relay unit. 17689_ System corrupted: Matter fused (-7). Map ----- +----------------------------------------------------+ | ?????????????????????????????????????????? | | ?????????????????????????????????????????? | | ?????????????????????????????????????????? | | ?????????????????????????????????????????? | | ?????????????????????????????????????????? | | ?????????????????????????????????????????? | | ??????######?????????????????????????????? | | ??????# #?????????????????????????????? | | ??????# < #?????????????????????????????? | | ??????# #?????????????????????????????? | | ??????# ###?????????????????????????????? | | ??????# #???????????????????????????????? | | ??????# #???????????????????????????????? | | ??##### #???????????????????????????????? | | ??# + #???????????????????????????????? | | ??# ### #???????????????????????????????? | | ??# #?# #???????????????????????????????? | | ??# #?# #???????????????????????????????? | | ###+### #######?????####????????????????? | | ^ + #????## ##???????????????? | | ^ #### #????# #???????????????? | | ###+##### #??# #????# #???????????????? | | ??# #???# #?##+##???## ##???????????????? | | ??# #???#^#?# #????## #???????#######??? | | ??# #???# ###"""####### #########^""""#??? | | ### #???# !! @Y "#??? | | #??##+#### "###### !!######## """"#??? | | #####??# #??# ##???#"""!"#?????#######??? | | ???????## #??# #????#######??????????????? | | ????????# #??# #?????????????????????????? | | ????????# #??# #?????????????????????????? | | ######### #### #?????????????????????????? | | " ######????????????????????? | | ### ########## #!!!!#????????????????????? | | ??# #????????# ^ #????????????????????? | | ### #????????###[[[[#????????????????????? | | + #??????????######????????????????????? | | ######??????????????????????????????????? | | # #??????????????????????????????????? | | = #??????????????????????????????????? | | ## = ##??????????????????????????????????? | | ###############?????????????????????? | | !=%!=%%*="#?????????????????????? | | ! ######"T"#?????????????????????? | | + ######?????????????????????? | | ## #### ### #??????????????????????????? | | ?# #??# #?# #??????????????????????????? | | ?# #??# #?# #??????????????????????????? | | ?# #??# #?# #??????????????????????????? | | ?# #??# ###+##?????????????????????????? | +----------------------------------------------------+ Best States ------------- Heat Dissipation 41 Coolant Potential 65 Energy Generation 19 Energy Capacity 360 Matter Stores 300 Matter Capacity 300 Sight Range 16 Robot Scan Range 20 Terrain Scan Density 10 Armor Coverage 450 Resistance: TH 10 Core Shielding 20 Weapon Shielding 33 Melee Speed Boost 20 Evasion (%) 57 Targeting Accuracy 16 Core Analysis 6 Recoil Reduction 3 Offensive Hacking 20 Defensive Hacking 10 Relay Coupler Types 1 Relay Coupler Value 22 Authchip Count 3 Item Schematics ----------------- Trap Extractor | -9/Materials | Scanalyzed Imp. Utility Shielding | -7/Factory | Hacked Microactuators | -7/Factory | Hacked Adv. Signal Interpreter | -7/Factory | Hacked Robot Schematics ------------------ None Fabricated ------------ Nothing Alien Tech Used ----------------- None Achievements -------------- None Challenges ------------ None Game ------ Seed ChargeMiningGenerator Manual? 0 Play Time 01:24:45 Cumulative 707.7 hours Start 2023.08.02 @ 02:14:56 End 2023.08.07 @ 10:14:17 Sessions 10 Manual Loads 0 Difficulty Rogue Special Mode None Game No. 647 Rogue 647 Adventurer 0 Explorer 0 Win Type - Total 34 Types 14/2/10/2/0/0/4/1/1 Lore% 97 Gallery% 96 Achievement% 83 Wizard Run 0 Options --------- ASCII 0 Keyboard 0 Movement Numpad Keybinds 0 Fullscreen 1 Font 18/Smallcaps Map View 76x50 Tactical HUD 1 Map Filters NONE Filters NONE Steam 1 RUN: d62bf4e6-5733-4e46-bf61-4e1c9c8d314b